[Event "Early-Titled-Tuesday-Blitz-October-17-2023"]
[Site "Chess.com"]
[Date "2023.10.17"]
[Round "9"]
[White "mmDarko"]
[Black "THE_PLAYER6"]
[Result "0-1"]
[WhiteElo "2298"]
[BlackElo "2574"]
[TimeControl "180+1"]
[EndTime "9:48:21 PDT"]
[Termination "THE_PLAYER6 won by checkmate"]

1. d4 {[%clk 0:02:47.2]} 1... Nf6 {[%clk 0:02:39.9]} 2. Nf3 {[%clk 0:02:48.1]}
2... d5 {[%clk 0:02:39.7]} 3. e3 {[%clk 0:02:45.7]} 3... Bg4 {[%clk 0:02:34.9]}
4. Be2 {[%clk 0:02:45]} 4... e6 {[%clk 0:02:31]} 5. O-O {[%clk 0:02:45.1]} 5...
Bd6 {[%clk 0:02:27.3]} 6. h3 {[%clk 0:02:43.1]} 6... Bh5 {[%clk 0:02:20.2]} 7.
c4 {[%clk 0:02:41.6]} 7... c6 {[%clk 0:02:12.4]} 8. Nbd2 {[%clk 0:02:39.3]} 8...
Nbd7 {[%clk 0:02:08.9]} 9. Qc2 {[%clk 0:02:37]} 9... O-O {[%clk 0:02:06.9]} 10.
e4 {[%clk 0:02:34.9]} 10... dxe4 {[%clk 0:02:06.4]} 11. Nxe4 {[%clk 0:02:35.8]}
11... Nxe4 {[%clk 0:02:06.7]} 12. Qxe4 {[%clk 0:02:35.5]} 12... Nf6 {[%clk
0:02:06.2]} 13. Qc2 {[%clk 0:02:26.6]} 13... Bg6 {[%clk 0:02:05.8]} 14. Bd3
{[%clk 0:02:25.7]} 14... Bxd3 {[%clk 0:02:04.3]} 15. Qxd3 {[%clk 0:02:26.6]}
15... Bc7 {[%clk 0:02:03.9]} 16. Bg5 {[%clk 0:02:17]} 16... h6 {[%clk
0:02:03.5]} 17. Bh4 {[%clk 0:02:16.9]} 17... e5 {[%clk 0:01:48.7]} 18. Qf5
{[%clk 0:01:28.3]} 18... exd4 {[%clk 0:01:43.7]} 19. Bxf6 {[%clk 0:01:13.4]}
19... Qxf6 {[%clk 0:01:43.1]} 20. Qxf6 {[%clk 0:01:13.5]} 20... gxf6 {[%clk
0:01:44]} 21. Nxd4 {[%clk 0:01:13.3]} 21... Be5 {[%clk 0:01:44.4]} 22. Nf5
{[%clk 0:01:13.1]} 22... Kh7 {[%clk 0:01:41.7]} 23. Rad1 {[%clk 0:01:09.5]}
23... Rad8 {[%clk 0:01:39.2]} 24. b3 {[%clk 0:01:08]} 24... a5 {[%clk
0:01:33.7]} 25. g3 {[%clk 0:00:52.2]} 25... Kg6 {[%clk 0:01:30.2]} 26. Ne7+
{[%clk 0:00:40.6]} 26... Kg7 {[%clk 0:01:28.2]} 27. Nf5+ {[%clk 0:00:40.5]}
27... Kg6 {[%clk 0:01:28.5]} 28. Ne7+ {[%clk 0:00:40.5]} 28... Kh7 {[%clk
0:01:29]} 29. Kg2 {[%clk 0:00:36.1]} 29... a4 {[%clk 0:01:28.8]} 30. f4 {[%clk
0:00:34.3]} 30... Bc3 {[%clk 0:01:28]} 31. Nf5 {[%clk 0:00:32.9]} 31... b5
{[%clk 0:01:25.2]} 32. Kf3 {[%clk 0:00:20.5]} 32... bxc4 {[%clk 0:01:22.8]} 33.
bxc4 {[%clk 0:00:16.7]} 33... c5 {[%clk 0:01:21.3]} 34. Ne7 {[%clk 0:00:15.1]}
34... Bd4 {[%clk 0:01:20.1]} 35. Nd5 {[%clk 0:00:14.5]} 35... Rb8 {[%clk
0:01:19.8]} 36. Rb1 {[%clk 0:00:14]} 36... a3 {[%clk 0:01:20]} 37. Rxb8 {[%clk
0:00:11]} 37... Rxb8 {[%clk 0:01:20.9]} 38. Re1 {[%clk 0:00:09.9]} 38... Rb2
{[%clk 0:01:20.9]} 39. Re2 {[%clk 0:00:10.2]} 39... Kg6 {[%clk 0:01:15]} 40. g4
{[%clk 0:00:09]} 40... h5 {[%clk 0:01:13]} 41. f5+ {[%clk 0:00:08.8]} 41... Kg5
{[%clk 0:01:13.3]} 42. Re8 {[%clk 0:00:04.9]} 42... Rxa2 {[%clk 0:01:10.1]} 43.
Rg8+ {[%clk 0:00:04.1]} 43... Kh6 {[%clk 0:01:10.7]} 44. h4 {[%clk 0:00:03.9]}
44... hxg4+ {[%clk 0:01:10]} 45. Kxg4 {[%clk 0:00:03.8]} 45... Rg2+ {[%clk
0:01:10.1]} 46. Kf3 {[%clk 0:00:04]} 46... Rxg8 {[%clk 0:01:11]} 47. Ke4 {[%clk
0:00:03.4]} 47... a2 {[%clk 0:01:11.4]} 48. Ne7 {[%clk 0:00:02.4]} 48... Re8
{[%clk 0:01:10.4]} 49. Kd5 {[%clk 0:00:02.5]} 49... Rxe7 {[%clk 0:01:10.7]} 50.
Kd6 {[%clk 0:00:03]} 50... a1=Q {[%clk 0:01:11.4]} 51. Kxe7 {[%clk 0:00:03.2]}
51... Qc3 {[%clk 0:01:10.8]} 52. Kxf7 {[%clk 0:00:03.5]} 52... Qxc4+ {[%clk
0:01:11.7]} 53. Ke7 {[%clk 0:00:03.9]} 53... Qd5 {[%clk 0:01:12]} 54. Ke8 {[%clk
0:00:03.3]} 54... c4 {[%clk 0:01:12.9]} 55. Ke7 {[%clk 0:00:03.2]} 55... Bc5+
{[%clk 0:01:12.4]} 56. Kxf6 {[%clk 0:00:02.8]} 56... Qd6+ {[%clk 0:01:11.4]} 57.
Kf7 {[%clk 0:00:02.6]} 57... Qe7+ {[%clk 0:01:11.9]} 58. Kg8 {[%clk 0:00:02.5]}
58... Qf8# {[%clk 0:01:12.8]} 0-1

[Event "Early-Titled-Tuesday-Blitz-October-17-2023"]
[Site "Chess.com"]
[Date "2023.10.17"]
[Round "9"]
[White "Herman-NY"]
[Black "destruyeabuelitas"]
[Result "1-0"]
[WhiteElo "2534"]
[BlackElo "2351"]
[TimeControl "180+1"]
[EndTime "9:48:22 PDT"]
[Termination "Herman-NY won by checkmate"]

1. e4 {[%clk 0:03:00.9]} 1... c6 {[%clk 0:02:59]} 2. d4 {[%clk 0:03:01]} 2... d5
{[%clk 0:02:58.7]} 3. e5 {[%clk 0:03:01.6]} 3... c5 {[%clk 0:02:58]} 4. dxc5
{[%clk 0:03:01.5]} 4... Nc6 {[%clk 0:02:57]} 5. f4 {[%clk 0:03:01.4]} 5... e6
{[%clk 0:02:49.4]} 6. Be3 {[%clk 0:03:00.2]} 6... Nge7 {[%clk 0:02:43.7]} 7. c3
{[%clk 0:02:58.3]} 7... Nf5 {[%clk 0:02:42.9]} 8. Bf2 {[%clk 0:02:58.6]} 8... b6
{[%clk 0:02:24.1]} 9. cxb6 {[%clk 0:02:51.9]} 9... axb6 {[%clk 0:02:25]} 10. Nf3
{[%clk 0:02:29.6]} 10... Bc5 {[%clk 0:02:22.6]} 11. Bd3 {[%clk 0:01:59.2]} 11...
Bxf2+ {[%clk 0:02:14.2]} 12. Kxf2 {[%clk 0:02:00.1]} 12... O-O {[%clk
0:01:59.8]} 13. Bxf5 {[%clk 0:01:31.6]} 13... exf5 {[%clk 0:01:58.1]} 14. Na3
{[%clk 0:01:29.5]} 14... f6 {[%clk 0:01:51.3]} 15. exf6 {[%clk 0:01:20.8]} 15...
Rxf6 {[%clk 0:01:48.1]} 16. Nc2 {[%clk 0:01:17.2]} 16... Be6 {[%clk 0:01:28.3]}
17. Ncd4 {[%clk 0:01:16.6]} 17... Nxd4 {[%clk 0:01:24.2]} 18. Nxd4 {[%clk
0:01:14.4]} 18... Bf7 {[%clk 0:01:23.7]} 19. Qf3 {[%clk 0:00:45]} 19... Qd6
{[%clk 0:01:20.3]} 20. Rhe1 {[%clk 0:00:38.9]} 20... Qc5 {[%clk 0:01:13.9]} 21.
a3 {[%clk 0:00:32.6]} 21... b5 {[%clk 0:01:01.7]} 22. Rad1 {[%clk 0:00:28.7]}
22... Qc4 {[%clk 0:00:57.7]} 23. Kg1 {[%clk 0:00:26.8]} 23... Rf8 {[%clk
0:00:54.5]} 24. Re5 {[%clk 0:00:24.3]} 24... Qa2 {[%clk 0:00:45.6]} 25. Rd2
{[%clk 0:00:19.9]} 25... g6 {[%clk 0:00:25.2]} 26. Qd1 {[%clk 0:00:17.6]} 26...
Be6 {[%clk 0:00:21.8]} 27. Nxe6 {[%clk 0:00:16]} 27... Re8 {[%clk 0:00:22.1]}
28. Nd4 {[%clk 0:00:16]} 28... Rxe5 {[%clk 0:00:21.3]} 29. fxe5 {[%clk
0:00:16.9]} 29... Rf7 {[%clk 0:00:21.6]} 30. e6 {[%clk 0:00:17.5]} 30... Re7
{[%clk 0:00:22.3]} 31. Re2 {[%clk 0:00:17.5]} 31... Qc4 {[%clk 0:00:20.9]} 32.
Qd2 {[%clk 0:00:16.2]} 32... Kg7 {[%clk 0:00:20.7]} 33. Qe3 {[%clk 0:00:15.9]}
33... Qa2 {[%clk 0:00:18.5]} 34. Qe5+ {[%clk 0:00:15.9]} 34... Kh6 {[%clk
0:00:18.8]} 35. h3 {[%clk 0:00:15.8]} 35... Qb1+ {[%clk 0:00:18.5]} 36. Kh2
{[%clk 0:00:16.4]} 36... Qf1 {[%clk 0:00:17.6]} 37. g3 {[%clk 0:00:11.6]} 37...
Kh5 {[%clk 0:00:11.4]} 38. g4+ {[%clk 0:00:07.9]} 38... Kh4 {[%clk 0:00:05.3]}
39. Qf6+ {[%clk 0:00:05.1]} 39... g5 {[%clk 0:00:03.3]} 40. Qh6# {[%clk
0:00:05.5]} 1-0

[Event "Early-Titled-Tuesday-Blitz-October-17-2023"]
[Site "Chess.com"]
[Date "2023.10.17"]
[Round "9"]
[White "Mikhail_Golubev"]
[Black "KatakuriDono"]
[Result "1-0"]
[WhiteElo "2571"]
[BlackElo "2386"]
[TimeControl "180+1"]
[EndTime "9:48:26 PDT"]
[Termination "Mikhail_Golubev won by checkmate"]

1. e4 {[%clk 0:03:00.9]} 1... e5 {[%clk 0:03:00.1]} 2. Nf3 {[%clk 0:03:00.8]}
2... Nc6 {[%clk 0:03:00.5]} 3. Bc4 {[%clk 0:03:01]} 3... Nf6 {[%clk 0:03:00.2]}
4. Ng5 {[%clk 0:02:59.9]} 4... d5 {[%clk 0:02:59.9]} 5. exd5 {[%clk 0:03:00.5]}
5... Na5 {[%clk 0:02:59.8]} 6. Bb5+ {[%clk 0:03:01]} 6... c6 {[%clk 0:03:00.3]}
7. dxc6 {[%clk 0:03:00.9]} 7... bxc6 {[%clk 0:03:01.1]} 8. Bd3 {[%clk
0:03:01.3]} 8... Nd5 {[%clk 0:03:00.8]} 9. Nf3 {[%clk 0:03:00.3]} 9... Bd6
{[%clk 0:02:55.8]} 10. O-O {[%clk 0:02:58.7]} 10... O-O {[%clk 0:02:51.5]} 11.
Re1 {[%clk 0:02:58]} 11... Qc7 {[%clk 0:02:46.9]} 12. Bf1 {[%clk 0:02:39.7]}
12... Bg4 {[%clk 0:02:36.4]} 13. c4 {[%clk 0:02:16.1]} 13... Nf4 {[%clk
0:02:33.4]} 14. h3 {[%clk 0:01:45.3]} 14... Bh5 {[%clk 0:02:29]} 15. d3 {[%clk
0:01:30]} 15... Rad8 {[%clk 0:02:23.5]} 16. Bxf4 {[%clk 0:01:24.5]} 16... exf4
{[%clk 0:02:19.3]} 17. a3 {[%clk 0:01:24.6]} 17... Bg6 {[%clk 0:01:53]} 18. b4
{[%clk 0:01:19.5]} 18... Nb7 {[%clk 0:01:53.2]} 19. Nc3 {[%clk 0:01:17.6]} 19...
a5 {[%clk 0:01:52.6]} 20. c5 {[%clk 0:01:12.8]} 20... Be7 {[%clk 0:01:47.6]} 21.
d4 {[%clk 0:00:52.5]} 21... Bf6 {[%clk 0:01:45.4]} 22. Ne4 {[%clk 0:00:48.7]}
22... Bxe4 {[%clk 0:01:35.2]} 23. Rxe4 {[%clk 0:00:49.6]} 23... Rd7 {[%clk
0:01:30.9]} 24. Bc4 {[%clk 0:00:48.8]} 24... Rfd8 {[%clk 0:01:27.9]} 25. Qd3
{[%clk 0:00:43.9]} 25... g6 {[%clk 0:01:24.9]} 26. Rae1 {[%clk 0:00:42.9]} 26...
axb4 {[%clk 0:01:23.5]} 27. axb4 {[%clk 0:00:42.4]} 27... Kg7 {[%clk 0:01:20.6]}
28. h4 {[%clk 0:00:35.3]} 28... h5 {[%clk 0:01:15.9]} 29. Qd2 {[%clk 0:00:29.7]}
29... Rb8 {[%clk 0:01:02.4]} 30. Rxf4 {[%clk 0:00:28.3]} 30... Nd8 {[%clk
0:00:59.6]} 31. Rxf6 {[%clk 0:00:24.9]} 31... Kxf6 {[%clk 0:00:50.2]} 32. Qh6
{[%clk 0:00:24.2]} 32... Ne6 {[%clk 0:00:40.5]} 33. Ne5 {[%clk 0:00:16.7]} 33...
Rxd4 {[%clk 0:00:29.7]} 34. Bxe6 {[%clk 0:00:13.6]} 34... Kxe6 {[%clk
0:00:26.9]} 35. Nxc6+ {[%clk 0:00:12.2]} 35... Kd5 {[%clk 0:00:20.4]} 36. Nxb8
{[%clk 0:00:11.6]} 36... Qxb8 {[%clk 0:00:19.6]} 37. Qg5+ {[%clk 0:00:11.3]}
37... Kc4 {[%clk 0:00:19.5]} 38. c6 {[%clk 0:00:10.7]} 38... Qc7 {[%clk
0:00:17.4]} 39. Rc1+ {[%clk 0:00:10.2]} 39... Kb3 {[%clk 0:00:16.6]} 40. Qc5
{[%clk 0:00:09.6]} 40... Rf4 {[%clk 0:00:09.4]} 41. Qc3+ {[%clk 0:00:09.1]}
41... Ka4 {[%clk 0:00:09.3]} 42. Ra1+ {[%clk 0:00:09.1]} 42... Kb5 {[%clk
0:00:09.9]} 43. Qc5# {[%clk 0:00:09.5]} 1-0

[Event "Early-Titled-Tuesday-Blitz-October-17-2023"]
[Site "Chess.com"]
[Date "2023.10.17"]
[Round "9"]
[White "lefonghua"]
[Black "sorch29"]
[Result "0-1"]
[WhiteElo "2622"]
[BlackElo "2423"]
[TimeControl "180+1"]
[EndTime "9:48:32 PDT"]
[Termination "sorch29 won by resignation"]

1. d4 {[%clk 0:03:00.9]} 1... Nf6 {[%clk 0:02:59.2]} 2. c4 {[%clk 0:03:01]} 2...
g6 {[%clk 0:02:56.1]} 3. Nc3 {[%clk 0:03:01.1]} 3... Bg7 {[%clk 0:02:56.6]} 4.
e4 {[%clk 0:03:01.1]} 4... d6 {[%clk 0:02:57]} 5. f4 {[%clk 0:03:01.6]} 5... O-O
{[%clk 0:02:56.3]} 6. Nf3 {[%clk 0:03:02]} 6... Na6 {[%clk 0:02:55.6]} 7. Be2
{[%clk 0:03:01.8]} 7... Bg4 {[%clk 0:02:46.3]} 8. O-O {[%clk 0:03:01]} 8... Nd7
{[%clk 0:02:41.8]} 9. h3 {[%clk 0:02:54.6]} 9... Bxf3 {[%clk 0:02:31.2]} 10.
Bxf3 {[%clk 0:02:55.5]} 10... e5 {[%clk 0:02:28.9]} 11. fxe5 {[%clk 0:02:56.4]}
11... dxe5 {[%clk 0:02:29.2]} 12. d5 {[%clk 0:02:57.1]} 12... Nac5 {[%clk
0:02:23]} 13. b4 {[%clk 0:02:52.9]} 13... Na6 {[%clk 0:02:20.5]} 14. a3 {[%clk
0:02:42.9]} 14... c5 {[%clk 0:02:15.3]} 15. Rb1 {[%clk 0:02:40.7]} 15... Rc8
{[%clk 0:02:12.9]} 16. b5 {[%clk 0:02:40.7]} 16... Nc7 {[%clk 0:02:12.6]} 17.
Be3 {[%clk 0:02:36.4]} 17... Ne8 {[%clk 0:02:11.7]} 18. a4 {[%clk 0:02:33.7]}
18... Nd6 {[%clk 0:02:10.7]} 19. Qb3 {[%clk 0:02:29.6]} 19... f5 {[%clk
0:02:08.8]} 20. Ra1 {[%clk 0:02:28.9]} 20... Bf6 {[%clk 0:02:06.3]} 21. a5
{[%clk 0:02:18.3]} 21... Bg5 {[%clk 0:02:05.5]} 22. Bf2 {[%clk 0:02:17.7]} 22...
Bd2 {[%clk 0:02:00.2]} 23. a6 {[%clk 0:02:09.8]} 23... b6 {[%clk 0:01:59.4]} 24.
Rad1 {[%clk 0:02:03.6]} 24... Bxc3 {[%clk 0:01:42.6]} 25. Qxc3 {[%clk
0:02:04.5]} 25... fxe4 {[%clk 0:01:43.1]} 26. Bg4 {[%clk 0:02:01.9]} 26... Qe7
{[%clk 0:01:28.9]} 27. Be6+ {[%clk 0:01:54.2]} 27... Kh8 {[%clk 0:01:24.1]} 28.
Bg3 {[%clk 0:01:49.7]} 28... Nf5 {[%clk 0:01:16.3]} 29. Bxe5+ {[%clk 0:01:38.7]}
29... Nxe5 {[%clk 0:01:15.9]} 30. Qxe5+ {[%clk 0:01:39.6]} 30... Qg7 {[%clk
0:01:16.3]} 31. Qxg7+ {[%clk 0:01:36.9]} 31... Kxg7 {[%clk 0:01:17.2]} 32. Bxc8
{[%clk 0:01:34.4]} 32... Rxc8 {[%clk 0:01:16]} 33. Rde1 {[%clk 0:01:34.1]} 33...
Re8 {[%clk 0:01:13.8]} 34. g4 {[%clk 0:01:27.8]} 34... Nd6 {[%clk 0:01:11.7]}
35. Rc1 {[%clk 0:01:24.6]} 35... e3 {[%clk 0:01:00.4]} 36. Rfe1 {[%clk
0:01:23.7]} 36... Re4 {[%clk 0:00:56.2]} 37. Kg2 {[%clk 0:01:11.1]} 37... Kf6
{[%clk 0:00:55.5]} 38. Rc3 {[%clk 0:01:05.4]} 38... Nxc4 {[%clk 0:00:38.5]} 39.
d6 {[%clk 0:01:01.8]} 39... Nxd6 {[%clk 0:00:31.8]} 40. Rcxe3 {[%clk 0:00:59.7]}
40... Rxe3 {[%clk 0:00:32.1]} 41. Rxe3 {[%clk 0:01:00.6]} 41... Nxb5 {[%clk
0:00:32.6]} 42. Re8 {[%clk 0:00:54.2]} 42... Nc7 {[%clk 0:00:22.1]} 43. Rh8
{[%clk 0:00:51.6]} 43... Nxa6 {[%clk 0:00:16.5]} 44. Rxh7 {[%clk 0:00:51.8]}
44... Nb4 {[%clk 0:00:15.9]} 45. Rxa7 {[%clk 0:00:51.4]} 45... c4 {[%clk
0:00:16.3]} 46. Rc7 {[%clk 0:00:50.1]} 46... Nd5 {[%clk 0:00:13.6]} 47. Rc6+
{[%clk 0:00:48.5]} 47... Ke5 {[%clk 0:00:13.2]} 48. Kf3 {[%clk 0:00:48.8]} 48...
b5 {[%clk 0:00:12.9]} 49. h4 {[%clk 0:00:48.5]} 49... b4 {[%clk 0:00:13.2]} 50.
h5 {[%clk 0:00:48.5]} 50... gxh5 {[%clk 0:00:13.8]} 51. gxh5 {[%clk 0:00:49.4]}
51... b3 {[%clk 0:00:14]} 52. Rc8 {[%clk 0:00:46.4]} 52... b2 {[%clk 0:00:14.3]}
53. Rb8 {[%clk 0:00:46.9]} 53... c3 {[%clk 0:00:14.8]} 54. h6 {[%clk 0:00:44.8]}
54... Nf6 {[%clk 0:00:14.4]} 55. Rb5+ {[%clk 0:00:42.7]} 55... Kd4 {[%clk
0:00:14.3]} 56. Ke2 {[%clk 0:00:33.9]} 56... c2 {[%clk 0:00:14.4]} 57. Rxb2
{[%clk 0:00:34.3]} 57... c1=Q {[%clk 0:00:14.7]} 58. Rd2+ {[%clk 0:00:35.2]}
58... Ke4 {[%clk 0:00:15.2]} 0-1

[Event "Early-Titled-Tuesday-Blitz-October-17-2023"]
[Site "Chess.com"]
[Date "2023.10.17"]
[Round "9"]
[White "Khromkin"]
[Black "supereagles1201"]
[Result "1-0"]
[WhiteElo "2522"]
[BlackElo "2365"]
[TimeControl "180+1"]
[EndTime "9:48:33 PDT"]
[Termination "Khromkin won on time"]

1. d4 {[%clk 0:03:00.9]} 1... d5 {[%clk 0:02:59.4]} 2. c4 {[%clk 0:03:01.4]}
2... c6 {[%clk 0:02:59.3]} 3. Nf3 {[%clk 0:03:00.3]} 3... Nf6 {[%clk 0:02:59.3]}
4. cxd5 {[%clk 0:02:58.6]} 4... cxd5 {[%clk 0:02:59]} 5. Nc3 {[%clk 0:02:59.5]}
5... Nc6 {[%clk 0:02:58.9]} 6. Bf4 {[%clk 0:03:00.1]} 6... Bf5 {[%clk
0:02:59.3]} 7. Nh4 {[%clk 0:02:59.7]} 7... Bd7 {[%clk 0:02:49.9]} 8. e3 {[%clk
0:02:59.8]} 8... h6 {[%clk 0:02:41.4]} 9. Nf3 {[%clk 0:02:54.8]} 9... Bf5 {[%clk
0:02:34.6]} 10. Qb3 {[%clk 0:02:54.4]} 10... Na5 {[%clk 0:02:17.2]} 11. Bb5+
{[%clk 0:02:40.3]} 11... Bd7 {[%clk 0:02:16.6]} 12. Qa4 {[%clk 0:02:35.8]} 12...
Nc6 {[%clk 0:02:01.1]} 13. Ne5 {[%clk 0:02:35.2]} 13... Qb6 {[%clk 0:01:34.5]}
14. Nxd7 {[%clk 0:02:31.5]} 14... Kxd7 {[%clk 0:01:32.8]} 15. O-O {[%clk
0:02:14.5]} 15... e6 {[%clk 0:01:32.6]} 16. e4 {[%clk 0:02:07.8]} 16... a6
{[%clk 0:01:20.4]} 17. exd5 {[%clk 0:02:02.6]} 17... exd5 {[%clk 0:01:09]} 18.
Be5 {[%clk 0:01:53.4]} 18... Be7 {[%clk 0:00:57.5]} 19. Bd3 {[%clk 0:01:46.3]}
19... Qb4 {[%clk 0:00:54.1]} 20. Bf5+ {[%clk 0:01:41.9]} 20... Ke8 {[%clk
0:00:47.1]} 21. Qd1 {[%clk 0:01:16.3]} 21... Qa5 {[%clk 0:00:28.1]} 22. Re1
{[%clk 0:01:11.1]} 22... Kf8 {[%clk 0:00:28.3]} 23. Qf3 {[%clk 0:01:06.9]} 23...
Rd8 {[%clk 0:00:27.8]} 24. a3 {[%clk 0:00:59.8]} 24... Qb6 {[%clk 0:00:25.5]}
25. Na4 {[%clk 0:00:57]} 25... Qa5 {[%clk 0:00:18.1]} 26. Nc3 {[%clk 0:00:13.5]}
26... Qb6 {[%clk 0:00:15.1]} 27. Rad1 {[%clk 0:00:11.1]} 27... Qa7 {[%clk
0:00:12.7]} 28. Re2 {[%clk 0:00:09.4]} 28... h5 {[%clk 0:00:10]} 29. Rde1 {[%clk
0:00:07.9]} 29... b5 {[%clk 0:00:08.6]} 30. Bxf6 {[%clk 0:00:05.4]} 30... Bxf6
{[%clk 0:00:08.5]} 31. Nxd5 {[%clk 0:00:05.9]} 31... Qxd4 {[%clk 0:00:07.2]} 32.
Nxf6 {[%clk 0:00:04.9]} 32... Qxf6 {[%clk 0:00:06.2]} 33. Qe4 {[%clk 0:00:02.7]}
33... g6 {[%clk 0:00:06.1]} 34. Bh3 {[%clk 0:00:02.8]} 34... Kg7 {[%clk
0:00:05.5]} 35. Re3 {[%clk 0:00:02.8]} 35... Rhe8 {[%clk 0:00:04.6]} 36. Qb1
{[%clk 0:00:02.9]} 36... Rxe3 {[%clk 0:00:03.6]} 37. Rxe3 {[%clk 0:00:03.5]}
37... Qd4 {[%clk 0:00:03]} 38. g3 {[%clk 0:00:03.6]} 38... Qd1+ {[%clk 0:00:03]}
39. Re1 {[%clk 0:00:04.1]} 39... Qxb1 {[%clk 0:00:01.2]} 40. Rxb1 {[%clk
0:00:05]} 1-0

[Event "Early-Titled-Tuesday-Blitz-October-17-2023"]
[Site "Chess.com"]
[Date "2023.10.17"]
[Round "9"]
[White "Alphafischer2019"]
[Black "attack2mateU"]
[Result "1-0"]
[WhiteElo "2608"]
[BlackElo "2709"]
[TimeControl "180+1"]
[EndTime "9:48:40 PDT"]
[Termination "Alphafischer2019 won on time"]

1. e4 {[%clk 0:03:00.9]} 1... c5 {[%clk 0:02:59.8]} 2. d3 {[%clk 0:02:59.3]}
2... Nc6 {[%clk 0:02:55.2]} 3. g3 {[%clk 0:02:59.1]} 3... g6 {[%clk 0:02:54.4]}
4. Bg2 {[%clk 0:02:59.1]} 4... Bg7 {[%clk 0:02:55.1]} 5. f4 {[%clk 0:02:59.9]}
5... d6 {[%clk 0:02:54.4]} 6. Nf3 {[%clk 0:03:00.4]} 6... e6 {[%clk 0:02:53.6]}
7. O-O {[%clk 0:03:01]} 7... Nge7 {[%clk 0:02:53.6]} 8. c3 {[%clk 0:03:01.7]}
8... O-O {[%clk 0:02:43.7]} 9. Be3 {[%clk 0:03:01.1]} 9... b6 {[%clk 0:02:40.1]}
10. d4 {[%clk 0:02:58.2]} 10... Bb7 {[%clk 0:02:17.6]} 11. Re1 {[%clk
0:02:54.5]} 11... cxd4 {[%clk 0:01:15.9]} 12. cxd4 {[%clk 0:02:53.2]} 12... Rc8
{[%clk 0:01:16.7]} 13. Nc3 {[%clk 0:02:53.2]} 13... Na5 {[%clk 0:01:17]} 14. Bf2
{[%clk 0:02:53.1]} 14... Nc4 {[%clk 0:01:17.5]} 15. Qe2 {[%clk 0:02:53.5]} 15...
a6 {[%clk 0:01:09.5]} 16. g4 {[%clk 0:02:49.8]} 16... b5 {[%clk 0:01:07.8]} 17.
Rac1 {[%clk 0:02:46.7]} 17... Qa5 {[%clk 0:01:06.5]} 18. h4 {[%clk 0:02:24.6]}
18... b4 {[%clk 0:01:06.3]} 19. Nb1 {[%clk 0:02:24.7]} 19... Qxa2 {[%clk
0:01:02.4]} 20. Nbd2 {[%clk 0:02:02.3]} 20... Nxd2 {[%clk 0:00:42.8]} 21. Qxd2
{[%clk 0:02:03.2]} 21... Rxc1 {[%clk 0:00:40.3]} 22. Qxc1 {[%clk 0:02:00.8]}
22... Rc8 {[%clk 0:00:40.9]} 23. Qd2 {[%clk 0:02:01.5]} 23... Qb3 {[%clk
0:00:40.6]} 24. Re2 {[%clk 0:01:56.4]} 24... a5 {[%clk 0:00:38]} 25. h5 {[%clk
0:01:53.6]} 25... a4 {[%clk 0:00:37.9]} 26. f5 {[%clk 0:01:49.4]} 26... a3
{[%clk 0:00:36.5]} 27. bxa3 {[%clk 0:01:48.5]} 27... bxa3 {[%clk 0:00:37.4]} 28.
h6 {[%clk 0:01:40.5]} 28... Bh8 {[%clk 0:00:36.3]} 29. fxe6 {[%clk 0:01:37.1]}
29... Qxe6 {[%clk 0:00:31]} 30. g5 {[%clk 0:01:13.6]} 30... Ra8 {[%clk
0:00:30.7]} 31. d5 {[%clk 0:01:10]} 31... Qg4 {[%clk 0:00:28.5]} 32. Bd4 {[%clk
0:00:56.5]} 32... a2 {[%clk 0:00:27]} 33. Bxh8 {[%clk 0:00:56.1]} 33... Nxd5
{[%clk 0:00:16.9]} 34. exd5 {[%clk 0:00:44.1]} 34... a1=Q+ {[%clk 0:00:04.1]}
35. Bxa1 {[%clk 0:00:42.6]} 35... Rxa1+ {[%clk 0:00:05]} 36. Re1 {[%clk
0:00:42.6]} 36... Rxe1+ {[%clk 0:00:01.4]} 37. Qxe1 {[%clk 0:00:42.6]} 37... Kf8
{[%clk 0:00:02.3]} 38. Qa5 {[%clk 0:00:33.6]} 38... Ke7 {[%clk 0:00:01.5]} 39.
Qc7+ {[%clk 0:00:31.6]} 39... Qd7 {[%clk 0:00:01.9]} 40. Qc4 {[%clk 0:00:22.4]}
40... Qf5 {[%clk 0:00:01.5]} 41. Qc7+ {[%clk 0:00:20.8]} 41... Qd7 {[%clk
0:00:02]} 42. Qxd7+ {[%clk 0:00:21.5]} 42... Kxd7 {[%clk 0:00:02.9]} 43. Nd4
{[%clk 0:00:21.8]} 43... Ke7 {[%clk 0:00:03.1]} 44. Nc6+ {[%clk 0:00:17.6]}
44... Kf8 {[%clk 0:00:03.1]} 45. Kf2 {[%clk 0:00:18]} 45... f6 {[%clk
0:00:03.6]} 46. gxf6 {[%clk 0:00:15.4]} 46... Bc8 {[%clk 0:00:02.5]} 47. Nd8
{[%clk 0:00:14.4]} 1-0